bitfinex/quotes_ETHUSD_20250214
["timestamp","ask_amount","ask_price","bid_price","bid_amount"]
[1739503169269,3.97841,2697.3,2696.7,4.46072]
[1739503169775,5.278988,2697.3,2696.7,4.46072]
[1739503169976,0.7801,2697.1,2696.7,3.0]
[1739503170280,0.7801,2697.1,2696.5,3.70851]
[1739503170462,0.7801,2697.1,2696.8,3.70803]
[1739503170770,0.7801,2697.1,2696.9,3.70795]
[1739503171175,0.7801,2697.1,2696.7,3.70809]
[1739503171476,0.7801,2697.1,2696.8,3.70806]
[1739503172077,1.5472678,2697.1,2696.6,3.0]
[1739503172246,1.5472678,2697.1,2696.6,6.70828]
[1739503172765,0.7801,2697.1,2696.7,7.41621]
[1739503173264,0.7801,2697.1,2696.8,3.70805]
[1739503174972,0.7801,2697.1,2697.0,3.70782]
[1739503175176,5.32,2697.2,2697.0,3.70782]
[1739503176062,1.0923,2697.5,2697.0,3.70782]
[1739503176261,2.326916,2697.5,2697.0,3.70782]
[1739503176471,2.326916,2697.5,2697.0,7.41564]
[1739503176637,2.326916,2697.5,2696.8,0.7625]
[1739503176638,2.227,2697.4,2697.1,3.70768]
[1739503176836,1.0923,2697.5,2697.1,3.70768]
[1739503177278,1.0923,2697.5,2696.9,6.70783]
[1739503178079,1.0923,2697.5,2697.0,3.70773]
[1739503178275,1.0923,2697.5,2696.9,6.70783]
[1739503178478,5.32,2697.6,2697.2,0.7625]
[1739503178679,5.591,2697.9,2697.2,3.7625]
[1739503179044,5.591,2697.9,2697.6,3.70696]
[1739503179474,5.32,2697.9,2697.2,0.7625]
[1739503179641,5.32,2697.9,2697.8,3.70672]
[1739503179840,5.32,2697.9,2697.6,3.70686]
[1739503179841,5.32,2698.3,2698.1,3.7063]
[1739503180451,5.32,2698.3,2698.2,0.22584977]
[1739503181943,5.32,2698.3,2698.0,3.70643]
[1739503182139,5.32,2698.3,2698.2,0.22584977]
[1739503182386,5.32,2698.3,2698.0,3.70643]
[1739503182584,5.32,2698.3,2698.2,0.22584977]
[1739503182784,5.32,2698.3,2698.0,3.70643]
[1739503182988,5.32,2698.3,2698.2,0.22584977]
[1739503183489,5.32,2698.3,2697.9,4.48199]
[1739503183645,5.32,2698.3,2698.2,0.22584977]
[1739503183845,5.32,2698.3,2698.0,3.70641]
[1739503184148,5.32,2698.3,2698.2,0.22584977]
[1739503184354,5.32,2698.3,2698.0,3.70641]
[1739503184889,5.32,2698.3,2698.1,0.22584977]
[1739503185090,4.82609,2698.3,2697.7,3.70678]
[1739503185250,4.82609,2698.3,2698.2,0.22584977]
[1739503185451,4.82609,2698.3,2697.7,3.70678]
[1739503185666,3.70609,2698.3,2698.2,0.22584977]
[1739503185866,3.70609,2698.3,2697.7,3.70678]
[1739503186061,3.70609,2698.3,2698.2,0.22584977]
[1739503186367,3.70609,2698.3,2697.7,3.70678]
[1739503186562,5.32,2698.4,2698.2,0.22584977]
[1739503186767,5.32,2698.4,2698.0,7.41286]
[1739503186971,5.32,2698.4,2698.0,3.70643]
[1739503187167,5.32,2698.4,2698.1,0.22584977]
[1739503187368,7.206035,2698.4,2698.1,0.22584977]
[1739503187569,7.206035,2698.4,2697.6,0.7501]
[1739503187798,5.32,2698.4,2698.2,0.22584977]
[1739503188004,5.32,2698.4,2698.0,3.70634]
[1739503188302,4.52077,2698.4,2697.4,0.75046973]
[1739503188478,3.70628,2698.2,2698.1,0.22584977]
[1739503188660,4.528992,2698.2,2697.5,3.0]
[1739503188860,0.8148,2698.1,2697.3,3.70736]
[1739503189064,3.70687,2697.7,2697.2,0.8318]
[1739503189262,3.70687,2697.7,2697.2,3.8318]
[1739503189467,3.70687,2697.7,2697.0,3.70771]
[1739503189468,0.7821,2697.6,2697.0,3.70771]
[1739503189667,4.48912,2697.6,2697.0,4.2302443]
[1739503190302,1.0531,2697.8,2697.3,3.7074]
[1739503190693,4.75992,2697.8,2697.2,3.70743]
[1739503191700,0.271,2697.8,2697.4,4.50869]
[1739503191906,0.271,2697.8,2697.4,0.8015]
[1739503192919,0.271,2697.8,2697.4,4.50874]
[1739503193204,0.271,2697.8,2697.4,1.623107]
[1739503193382,0.271,2697.8,2697.7,3.70686]
[1739503194802,0.271,2697.8,2697.7,0.22482535]
[1739503195180,0.271,2697.8,2697.6,3.70696]
[1739503195399,0.271,2697.8,2697.7,0.22482535]
[1739503195773,0.271,2697.8,2697.7,3.93168535]
[1739503196106,5.32,2698.1,2697.7,4.69554989]
[1739503196305,5.32,2698.1,2697.7,0.22482535]
[1739503196508,9.02634,2698.1,2697.7,0.22482535]
[1739503196805,9.02634,2698.1,2697.5,3.70712]
[1739503197102,9.02634,2698.1,2536.2,0.00794514]
[1739503197103,0.8321,2698.0,2697.2,3.70746]
[1739503197266,3.70674,2697.8,2697.6,0.22482535]
[1739503197467,0.8321,2697.7,2697.1,4.50061]
[1739503197707,4.53904,2697.7,2697.1,3.70761]
[1739503198513,3.70735,2697.4,2696.8,3.70809]
[1739503198676,4.53959,2697.3,2696.7,4.5012]
[1739503200238,5.54741474,2697.3,2696.6,3.0]
[1739503200399,13.09441474,2697.3,2696.4,3.7871]
[1739503200599,3.70769,2697.1,2696.6,3.70837]
[1739503201642,0.8313,2697.0,2696.6,3.70837]
[1739503202640,5.32,2697.3,2696.9,3.70796]
[1739503202810,0.8293,2697.2,2696.9,3.70796]
[1739503203015,5.32,2697.3,2696.9,3.70786]
[1739503203218,5.32,2697.3,2697.0,3.70778]
[1739503203524,5.32,2697.3,2697.1,3.7076]
[1739503203910,5.32,2697.3,2696.9,3.7079]
[1739503204114,5.32,2697.3,2696.9,4.531107]
[1739503204641,5.32,2697.3,2696.9,0.823207]
[1739503205843,3.70751,2697.3,2696.7,4.52414]
[1739503206053,4.49159,2697.2,2696.7,3.70814]
[1739503206542,4.49159,2697.2,2696.6,3.70832]
[1739503206701,3.70776,2697.1,2696.5,6.70845]
[1739503207103,4.49159,2697.2,2696.4,3.8095]
[1739503207303,3.70782,2697.0,2696.5,3.70848]
[1739503207531,0.8213,2696.9,2696.4,3.70862]
[1739503207746,0.8213,2696.9,2696.1,3.70901]
[1739503207747,3.7081,2696.8,2696.1,3.70901]
[1739503207949,3.7081,2696.8,2696.2,3.0]
[1739503208247,3.7081,2696.8,2696.2,6.70892]
[1739503208447,3.7081,2696.8,2696.2,7.833238]
[1739503209733,3.7081,2696.8,2696.3,0.216152]
[1739503210046,3.70827,2696.7,2696.2,3.0]
[1739503210342,0.8326,2696.5,2696.4,0.21647378]
[1739503210507,1.286701,2696.5,2695.9,3.70927]
[1739503210710,0.8326,2696.5,2696.4,0.21647378]
[1739503211047,6.1526,2696.5,2695.9,3.70927]
[1739503211343,9.86111,2696.5,2696.4,0.21647378]
[1739503211534,9.86111,2696.5,2695.8,4.45131678]
[1739503211728,9.86111,2696.5,2696.4,0.21647378]
[1739503211925,11.245162,2696.5,2695.9,3.70929]
[1739503212105,7.536652,2696.5,2696.4,0.21647378]
[1739503212306,11.245182,2696.5,2695.9,3.70929]
[1739503212519,7.536652,2696.5,2696.4,0.21647378]
[1739503212725,7.536652,2696.5,2695.8,3.74187678]
[1739503213003,3.70874,2696.4,2695.8,7.45125678]
[1739503213205,3.70874,2696.4,2695.9,3.70931]
[1739503214055,11.245252,2696.5,2695.9,3.70931]
[1739503214238,3.70865,2696.4,2695.9,3.70931]
[1739503214422,7.536652,2696.5,2695.9,3.70924]
[1739503214648,7.536652,2696.5,2696.0,3.70917]
[1739503215610,7.536652,2696.5,2696.1,3.70895]
[1739503215809,7.536652,2696.5,2695.8,3.74187678]
[1739503215810,6.1526,2696.5,2696.4,3.70864]
[1739503216154,5.32,2696.5,2696.4,3.70864]
[1739503216825,5.32,2696.5,2696.2,3.70886]
[1739503217335,5.32,2696.5,2696.0,3.70916]
[1739503217529,5.32,2696.5,2696.1,3.70899]
[1739503218377,5.32,2696.5,2696.2,3.70882]
[1739503218578,5.32,2696.5,2696.1,3.70899]
[1739503218775,5.32,2696.5,2696.3,3.70878]
[1739503218973,5.32,2696.5,2696.4,3.70864]
[1739503219379,5.32,2696.5,2696.2,3.0]
[1739503219556,5.32,2696.5,2696.3,3.70865]
[1739503220075,5.32,2696.5,2696.4,3.70864]
[1739503220377,5.32,2696.5,2696.3,3.70865]
[1739503220554,6.1166,2696.5,2696.1,3.70897]
[1739503220754,6.1166,2696.5,2695.9,7.41849]
[1739503220755,4.50513,2696.5,2695.9,7.41849]
[1739503220972,4.50513,2696.5,2695.9,3.70924]
[1739503221279,4.51749,2696.4,2695.8,3.70936]
[1739503222784,6.74449,2696.4,2695.5,5.97084006]
[1739503222989,7.547,2696.3,2695.7,3.70959]
[1739503223278,12.22481473,2696.3,2695.7,3.70959]
[1739503223479,0.8042,2696.2,2695.7,3.70959]
[1739503224888,4.51325,2696.2,2695.8,0.21759626]
[1739503225275,0.8042,2696.2,2695.8,0.21759626]
[1739503225635,0.8042,2696.2,2696.0,3.70911]
[1739503225782,0.8042,2696.2,2695.9,3.70933]
[1739503225783,0.8042,2696.2,2696.1,3.70906]
[1739503225982,5.32,2696.3,2696.1,3.70896]
[1739503226182,5.32,2696.3,2696.1,0.21764118]
[1739503226593,5.32,2696.3,2695.9,3.70932]
[1739503226799,5.32,2696.3,2696.2,0.21763367]
[1739503226984,5.32,2696.3,2695.9,3.70932]
[1739503227185,5.32,2696.3,2696.2,0.21763367]
[1739503227408,5.32,2696.3,2695.9,3.70932]
[1739503227607,5.32,2696.3,2696.2,0.21763367]
[1739503227822,5.32,2696.3,2695.7,3.70955]
[1739503227823,0.8038,2696.2,2695.8,3.70946]
[1739503228124,0.8038,2696.2,2695.7,3.70955]
[1739503229119,0.8038,2696.2,2695.8,3.70946]
[1739503229429,0.8038,2696.2,2695.7,3.70955]
[1739503229626,6.1238,2696.2,2695.7,3.70955]
[1739503230329,6.1238,2696.2,2695.8,3.70943]
[1739503230500,6.1238,2696.2,2695.9,3.70931]
[1739503230699,5.32,2696.2,2696.0,4.48499]
[1739503231000,5.32,2696.2,2696.1,3.70906]
[1739503231512,6.1254,2696.2,2696.0,3.70919]
[1739503231844,6.1254,2696.2,2696.0,3.70911]
[1739503233823,6.1254,2696.2,2695.9,3.70931]
[1739503234702,5.32,2696.2,2695.6,3.0]
[1739503234906,5.32,2696.2,2696.1,3.70906]
[1739503235295,5.32,2696.2,2695.8,3.70939]
[1739503235610,9.02866,2696.4,2695.8,3.70939]
[1739503235802,4.52811,2696.3,2695.6,3.70962]
[1739503236001,6.133577,2696.3,2695.6,3.70962]
[1739503236420,6.133577,2696.3,2695.7,6.70953]
[1739503236935,9.023157,2696.3,2695.7,6.70953]
[1739503237153,3.70908,2696.1,2695.7,3.0]
[1739503237307,3.0328,2696.2,2695.7,3.0]
[1739503237515,0.8347077,2696.1,2695.7,3.0]
[1739503237844,0.8347077,2696.1,2695.8,0.25970869]
[1739503238904,0.8347077,2696.1,2695.8,3.96904869]
[1739503239242,0.8058,2696.2,2695.9,3.70932]
[1739503239603,0.8058,2696.2,2695.8,7.41872]
[1739503239792,0.8058,2696.2,2696.0,0.25970869]
[1739503239993,6.1209,2696.4,2696.0,7.41828]
[1739503240233,6.1209,2696.4,2696.1,0.25970869]
[1739503240797,5.32,2696.4,2696.2,3.70878]
[1739503240998,0.7757,2696.8,2696.4,3.70855]
[1739503241196,9.80388,2696.8,2696.2,0.7962]
[1739503241435,3.70824,2696.7,2696.5,0.25970869]
[1739503241613,3.70824,2696.7,2696.1,3.70898]
[1739503241808,3.70824,2696.7,2696.1,7.41795]
[1739503242038,13.51207,2696.8,2696.2,3.96858869]
[1739503242339,2.227,2696.4,2696.2,0.25970869]
[1739503242536,0.8218,2696.5,2696.2,3.7089]
[1739503242842,0.8218,2696.5,2696.3,0.25970869]
[1739503243199,0.8218,2696.5,2696.2,3.7089]
[1739503243400,0.8218,2696.5,2696.4,0.25970869]
[1739503243600,0.8218,2696.5,2696.2,3.7089]
[1739503243904,1.12668,2696.5,2695.8,0.8311]
[1739503244104,10.1552,2696.5,2696.3,0.25970869]
[1739503244329,10.1552,2696.5,2695.9,3.70932]
[1739503244540,10.1552,2696.5,2696.4,0.25970869]
[1739503244736,10.1552,2696.5,2695.9,3.70932]
[1739503244941,1.386365,2696.4,2695.9,3.70932]
[1739503245150,5.095045,2696.4,2695.8,4.54056]
[1739503245450,0.7735,2696.3,2696.0,3.70911]
[1739503247056,0.7735,2696.3,2695.9,3.70932]
[1739503247251,0.7735,2696.3,2695.8,3.70938]
[1739503247858,0.7735,2696.3,2696.0,3.70918]
[1739503248363,0.7735,2696.3,2696.0,3.70912]
[1739503248663,6.706365,2696.4,2696.2,3.70889]
[1739503248664,5.32,2696.4,2696.2,3.70889]
[1739503249022,5.32,2696.4,2696.3,3.70878]
[1739503249217,0.7608,2696.7,2696.2,3.70889]
[1739503249463,1.739678,2696.7,2696.2,3.70889]
[1739503249640,5.447928,2696.7,2696.2,3.70889]
[1739503250165,1.739678,2696.7,2696.2,3.70881]
[1739503250321,0.7608,2696.7,2696.2,3.70881]
[1739503250522,0.7608,2696.7,2696.4,3.70862]
[1739503251491,0.271,2696.8,2696.4,7.41717]
[1739503251621,6.0808,2696.9,2696.7,3.70823]
[1739503252041,6.0808,2696.9,2696.3,3.7087]
[1739503252342,6.0808,2696.9,2696.6,3.70833]
[1739503252740,5.32,2696.9,2696.6,3.70833]
[1739503254779,5.32,2696.9,2696.7,0.25950657]
[1739503255442,5.32,2696.9,2696.7,3.96773657]
[1739503255642,5.32,2696.9,2696.7,0.25950657]
[1739503256315,6.0808,2697.0,2696.7,0.25950657]
[1739503257880,6.0808,2697.0,2696.7,0.01070657]
[1739503258180,6.0808,2697.0,2696.7,0.25950657]
[1739503259147,6.0808,2697.0,2696.5,3.70849]
[1739503259389,7.457527,2697.0,2696.8,0.25062085]
[1739503259598,11.165447,2697.0,2696.4,3.70857]
[1739503259760,11.165447,2697.0,2696.3,0.7667]
[1739503259761,3.70819,2696.8,2696.3,3.0]
[1739503259958,0.8201,2696.7,2696.3,3.0]
[1739503260360,0.8201,2696.7,2696.4,3.70862]
[1739503261570,0.8201,2696.7,2696.5,3.70843]
[1739503261776,0.7981,2696.9,2696.6,3.70837]
[1739503262105,7.547,2697.0,2696.6,3.70837]
[1739503262301,7.547,2697.0,2696.4,3.70856]
[1739503262504,7.99538174,2697.0,2696.6,3.70836]
[1739503263001,7.99538174,2697.0,2696.6,3.7083]
[1739503263687,11.70320174,2697.0,2696.4,7.41711]
[1739503263888,11.70320174,2697.0,2696.4,3.70855]
[1739503264093,0.805,2696.9,2696.4,3.70855]
[1739503264695,0.805,2696.9,2696.4,7.41712]
[1739503265003,2.227,2696.4,2695.5,0.8282]
[1739503265204,5.93596,2696.2,2695.6,3.70965]
[1739503265364,6.20696,2696.2,2695.6,3.70965]
[1739503265565,7.86602,2696.2,2695.7,0.22429688]
[1739503266505,4.15706,2696.2,2695.8,3.70944]
[1739503266867,4.15706,2696.2,2695.9,0.20057828]
[1739503267810,0.271,2696.2,2695.9,0.20057828]
[1739503267991,6.48619,2696.0,2695.9,0.20057828]
[1739503268176,10.45563361,2696.0,2695.9,0.20057828]
[1739503268382,3.0232,2695.8,2695.0,4.46555]
[1739503268704,5.9367,2695.7,2695.0,0.755]
[1739503268909,0.8206,2695.4,2695.1,0.19599292]
[1739503269305,0.8206,2695.4,2694.9,3.71069]
[1739503269803,0.8206,2695.4,2695.0,0.19621598]
[1739503270233,0.8206,2695.4,2694.9,3.71069]
[1739503270528,0.8206,2695.4,2694.8,3.8577869]
[1739503270529,0.8206,2695.4,2695.1,0.19621598]
[1739503270818,0.8206,2695.4,2695.0,3.71057]
[1739503271017,0.8206,2695.4,2695.2,0.19645396]
[1739503271305,0.8206,2695.4,2695.1,0.1964614]
[1739503271511,0.8206,2695.4,2695.0,3.71057]
[1739503271996,4.53064,2695.4,2695.1,0.1964614]
[1739503272167,0.824057,2695.3,2695.1,0.1964614]
[1739503272372,0.8206,2695.4,2694.8,3.8577969]
[1739503272685,0.8206,2695.4,2694.9,0.1964614]
[1739503272884,0.8206,2695.4,2695.1,3.71043]
[1739503273307,0.8206,2695.4,2694.9,0.1964614]
[1739503273308,0.8206,2695.4,2694.9,3.71061]
[1739503273684,0.8206,2695.4,2695.0,3.71057]
[1739503273870,0.8206,2695.4,2695.0,3.9070314]
[1739503274565,0.8206,2695.4,2695.0,0.1964614]
[1739503274772,5.32,2695.5,2694.9,0.7527]
[1739503274968,5.32,2695.5,2695.1,3.71034]
[1739503275216,5.32,2695.5,2695.2,0.19662505]
[1739503275419,5.32,2695.5,2695.2,3.90683505]
[1739503275776,5.32,2695.5,2695.4,3.71002]
[1739503275977,5.32,2695.5,2695.4,4.72204091]
[1739503279519,5.32,2695.5,2695.4,3.90654091]
[1739503280021,6.087,2696.0,2695.4,3.90654091]
[1739503280314,7.093701,2696.0,2695.4,3.90654091]
[1739503280522,10.802901,2696.0,2695.4,3.90654091]
[1739503280893,10.802901,2696.0,2695.5,3.70984]
[1739503281214,7.093701,2696.0,2695.6,3.90607493]
[1739503281415,7.093701,2696.0,2695.6,0.19633493]
[1739503281619,7.093701,2696.0,2695.6,3.90604493]
[1739503281922,2.227,2695.9,2695.6,3.90604493]
[1739503282136,7.093701,2696.0,2695.6,0.19633493]
[1739503282302,4.6414801,2695.9,2695.6,0.19633493]
[1739503282636,0.8303,2695.8,2695.3,3.71009]
[1739503282808,0.8303,2695.8,2695.7,0.19637211]
[1739503283009,0.8303,2695.8,2695.3,3.71009]
[1739503283210,0.8303,2695.8,2695.7,0.19637211]
[1739503283433,0.8303,2695.8,2695.4,3.70999]
[1739503283434,1.90946001,2695.8,2695.4,3.70999]
[1739503283738,1.90946001,2695.8,2695.7,0.19637211]
[1739503284098,1.90946001,2695.8,2694.9,5.29517691]
[1739503284099,1.90946001,2695.8,2695.6,3.7097]
[1739503284494,1.90946001,2695.8,2695.7,0.19637211]
[1739503284723,6.1264,2696.0,2695.7,0.19637211]
[1739503286228,3.70937,2695.9,2695.4,3.7099]
[1739503286542,0.8009,2695.8,2695.4,3.7099]
[1739503287751,0.8009,2695.8,2695.3,3.71006]
[1739503288044,0.673727,2695.7,2695.5,0.19640929]
[1739503288256,3.70969,2695.7,2695.4,0.19645391]
[1739503288393,3.70969,2695.7,2695.1,3.71043]
[1739503288594,0.8009,2695.6,2695.5,0.19645391]
[1739503288833,0.8009,2695.6,2695.1,3.71043]
[1739503289034,1.474659,2695.6,2695.5,0.19645391]
[1739503289400,1.474659,2695.6,2695.0,3.71053]
[1739503289594,6.1209,2695.6,2695.1,0.19645391]
[1739503290040,6.1209,2695.6,2695.2,3.71017]
[1739503290833,6.1209,2695.6,2695.3,0.19645391]
[1739503291234,6.1209,2695.6,2695.2,3.71017]
[1739503291429,6.1209,2695.6,2695.4,0.19645391]
[1739503291634,7.326637,2695.6,2695.2,3.71017]
[1739503291850,7.326637,2695.6,2695.5,0.19645391]
[1739503292232,7.326637,2695.6,2695.3,3.71014]
[1739503292434,5.32,2695.6,2695.5,0.19676627]
[1739503292640,5.32,2695.6,2695.4,3.70988]
[1739503292839,5.32,2695.6,2695.5,3.9068322]
[1739503293153,5.32,2695.6,2695.5,0.1969522]
[1739503294380,5.32,2695.6,2695.5,3.9068322]
[1739503294955,5.32,2695.9,2695.6,3.70967]
[1739503295276,5.591,2696.0,2695.7,3.90643295]
[1739503296982,5.591,2696.0,2695.7,0.19686295]
[1739503297190,6.824552,2696.0,2695.7,0.19686295]
[1739503297391,6.824552,2696.0,2695.8,0.19670677]
[1739503297588,6.824552,2696.0,2695.5,3.70988]
[1739503297787,6.824552,2696.0,2695.7,3.7096]
[1739503298239,6.824552,2696.0,2695.8,0.19670677]
[1739503298686,1.5583052,2695.9,2695.8,0.19670677]
[1739503298891,1.5583052,2695.9,2695.3,4.46122]
[1739503299043,5.2676352,2695.9,2695.8,0.19670677]
[1739503299381,5.2676352,2695.9,2695.3,3.71007]
[1739503299567,5.2676352,2695.9,2695.8,0.19669934]
[1739503299760,5.2676352,2695.9,2695.3,3.71007]
[1739503300088,0.795,2695.5,2695.4,0.19669934]
[1739503300385,16.57188,2695.5,2695.4,0.19669934]
[1739503300589,16.57188,2695.5,2694.9,3.71065]
[1739503300891,5.32,2695.4,2695.0,0.19670677]
[1739503301285,3.71019,2695.3,2695.0,0.19670677]
[1739503301485,3.71019,2695.3,2694.8,0.1469969]
[1739503301799,3.71019,2695.3,2694.8,3.8577969]
[1739503302301,3.71019,2695.3,2694.9,0.18968153]
[1739503302655,5.32,2695.3,2694.9,3.90036153]
[1739503303191,0.7633,2695.2,2694.9,0.18968153]
[1739503304054,0.7633,2695.2,2694.9,3.90028153]
[1739503304254,0.7633,2695.2,2694.9,0.18968153]
[1739503304465,5.32,2695.4,2695.0,3.71057]
[1739503304697,5.32,2695.4,2695.1,3.71034]
[1739503304996,5.32,2695.4,2695.1,3.90022239]
[1739503305194,5.32,2695.4,2695.3,3.71016]
[1739503305552,5.32,2695.4,2695.3,0.1903361]
[1739503305794,5.32,2695.4,2695.1,3.71043]
[1739503306354,5.32,2695.4,2695.2,0.19021707]
[1739503306866,0.271,2695.5,2695.2,0.19021707]
[1739503307811,0.271,2695.5,2695.3,3.71014]
[1739503307963,0.271,2695.5,2695.1,3.71035]
[1739503308166,0.271,2695.5,2695.2,0.19021707]
[1739503308869,0.271,2695.5,2695.3,3.71008]
[1739503309069,0.271,2695.5,2695.2,0.19021707]
[1739503309315,0.271,2695.5,2695.4,0.19013525]
[1739503309508,0.271,2695.5,2695.1,3.71032]
[1739503309806,5.32,2695.6,2695.2,3.71025]
[1739503310014,5.32,2695.6,2695.3,0.19013525]
[1739503310211,5.32,2695.6,2695.1,3.71032]
[1739503310386,5.32,2695.6,2695.2,0.19013525]
[1739503311211,6.332521,2695.6,2695.2,0.19013525]
[1739503311386,0.7995,2695.5,2695.0,3.71049]
[1739503311586,0.7995,2695.5,2695.1,0.19008319]
[1739503311788,3.0265,2695.5,2695.1,0.19008319]
[1739503311998,0.9359021,2695.4,2695.1,0.19008319]
[1739503312199,0.9359021,2695.4,2695.2,3.71029]
[1739503312369,0.9359021,2695.4,2695.3,0.19012037]
[1739503312573,0.9359021,2695.4,2695.2,3.71029]
[1739503312773,6.2559021,2695.4,2695.2,3.71029]
[1739503313067,6.2559021,2695.4,2695.3,0.19012037]
[1739503313470,6.2559021,2695.4,2695.0,3.71044]
[1739503313708,6.2559021,2695.4,2695.3,0.190165]
[1739503313883,6.2559021,2695.4,2695.1,3.71041]
[1739503314082,6.2559021,2695.4,2695.3,0.19020963]
[1739503314283,6.2559021,2695.4,2695.1,3.71041]
[1739503314477,6.2559021,2695.4,2695.3,0.19020219]
[1739503314684,6.2559021,2695.4,2695.1,3.71041]
[1739503315207,0.92824021,2695.3,2695.2,0.1900534]
[1739503315614,0.92824021,2695.3,2695.0,3.71057]
[1739503315974,5.32,2695.4,2695.1,3.9003734]
[1739503316260,5.32,2695.4,2695.1,0.1900534]
[1739503316564,5.32,2695.4,2695.1,3.9003634]
[1739503317658,0.8054,2695.3,2695.1,0.1900534]
[1739503317849,4.51559,2695.3,2695.1,0.1900534]
[1739503318029,4.693849,2695.2,2694.8,0.1469969]
[1739503318741,10.013849,2695.2,2694.8,0.1469969]
[1739503319145,6.303559,2695.2,2694.8,3.8578069]
[1739503319354,6.303559,2695.2,2694.8,7.5685669]
[1739503319732,6.303559,2695.2,2694.8,3.8577569]
[1739503321774,0.9335959,2695.1,2694.8,3.8577469]
[1739503321942,6.303559,2695.2,2694.8,3.8577469]
[1739503322478,6.303559,2695.2,2695.0,3.71057]
[1739503322779,5.32,2695.2,2695.0,3.71049]
[1739503323077,5.32,2695.2,2695.1,3.71043]
[1739503324356,5.32,2695.2,2695.0,3.71049]
[1739503326949,0.7887,2695.5,2695.0,3.0]
[1739503327283,0.7887,2695.5,2695.0,6.71056]
[1739503328736,0.7887,2695.5,2695.1,3.7104]
[1739503328974,0.7887,2695.5,2695.1,7.42072]
[1739503329380,0.7887,2695.5,2695.1,3.71032]
[1739503329583,0.7887,2695.5,2695.0,3.0]
[1739503329584,0.7887,2695.5,2694.9,3.71065]
[1739503329785,6.1087,2695.5,2694.9,4.25196088]
[1739503329969,6.1087,2695.5,2695.1,3.71034]
[1739503330173,6.1087,2695.5,2695.2,3.71026]
[1739503330394,5.32,2695.5,2695.2,3.71026]
[1739503330540,5.32,2695.5,2695.3,0.1900311]
[1739503330984,5.32,2695.5,2695.1,7.42068]
[1739503331139,0.2488,2695.2,2695.1,3.71034]
[1739503332393,0.2488,2695.2,2694.9,7.42124]
[1739503332594,0.2488,2695.2,2694.8,0.1469969]
[1739503333000,0.72449,2695.2,2694.8,0.1469969]
[1739503333337,6.04449,2695.2,2694.8,3.8577269]
[1739503335920,6.04449,2695.2,2694.8,7.5684469]
[1739503336095,6.04449,2695.2,2694.8,3.8577169]
[1739503337136,6.04449,2695.2,2694.9,3.7107]
[1739503337937,6.04449,2695.2,2694.8,3.8577169]
[1739503338140,0.684249,2695.1,2694.8,0.1469969]
[1739503339006,0.8132,2695.0,2694.8,0.1469969]
[1739503342757,0.8132,2695.0,2694.8,3.8578369]
[1739503342958,0.8132,2695.0,2694.8,0.1469969]
[1739503343257,0.8132,2695.0,2694.8,3.8578369]
[1739503344316,0.8132,2695.0,2694.8,0.1469969]
[1739503344717,0.8132,2695.0,2694.9,0.19007574]
[1739503346079,13.54497,2695.0,2694.9,0.19007574]
[1739503346373,7.27971,2694.9,2694.8,0.1469969]
[1739503346526,12.59971,2694.9,2694.8,0.1469969]
[1739503347358,22.379231,2694.9,2694.8,0.1469969]
[1739503351635,3.5927,2694.5,2693.5,0.8064]
[1739503351949,7.42409,2694.0,2693.6,0.18415315]
[1739503352144,3.71201,2694.0,2693.6,0.18415315]
[1739503353097,3.98282,2694.1,2693.6,0.18415315]
[1739503354579,0.271,2694.1,2693.8,3.71213]
[1739503354869,0.271,2694.1,2693.9,0.96582015]
[1739503355464,0.271,2694.1,2693.9,0.18422015]
[1739503355875,4.51228,2694.3,2693.7,0.7816]
[1739503355876,0.8007,2694.3,2693.7,0.7816]
[1739503356035,1.0717,2694.3,2694.0,0.18434671]
[1739503356236,0.271,2694.3,2693.9,3.71206]
[1739503356478,0.271,2694.3,2694.0,0.18434671]
[1739503357164,3.98261,2694.3,2693.7,4.94333]
[1739503357368,9.30261,2694.3,2694.1,0.18497926]
[1739503357677,10.961219,2694.3,2694.2,0.18497926]
[1739503358033,10.961219,2694.3,2693.7,4.49393]
[1739503358235,10.961219,2694.3,2693.8,0.18495693]
[1739503358436,10.961219,2694.3,2693.7,4.44393]
[1739503358676,7.249689,2694.3,2693.8,3.89713693]
[1739503358840,7.249689,2694.3,2693.8,0.18495693]
[1739503359043,7.249689,2694.3,2693.7,4.44389]
[1739503359376,3.71169,2694.2,2693.8,0.18495693]
[1739503359672,3.71169,2694.2,2693.7,4.44389]
[1739503359876,7.249689,2694.3,2693.9,0.18495693]
[1739503360190,7.249689,2694.3,2693.8,3.71222]
[1739503360191,6.978689,2694.3,2694.0,3.71194]
[1739503360354,5.32,2694.3,2694.0,3.89689693]
[1739503360533,5.32,2694.3,2694.0,0.18495693]
[1739503360739,6.0955,2694.7,2694.0,0.18495693]
[1739503360997,5.32,2694.7,2694.3,3.7115]
[1739503361279,5.32,2694.7,2694.4,0.98311226]
[1739503361466,5.32,2694.7,2694.4,4.69450226]
[1739503364080,5.32,2694.7,2694.4,8.40589226]
[1739503364253,5.32,2694.7,2694.4,5.53509149]
[1739503364459,5.32,2694.7,2694.5,3.71126]
[1739503364944,1.071,2695.2,2694.7,0.8045]
[1739503365284,1.071,2695.2,2695.0,3.71053]
[1739503365285,0.2488,2695.2,2695.0,3.71053]
[1739503365990,0.2488,2695.2,2695.1,3.89502221]
[1739503366179,0.2488,2695.2,2695.1,4.69952221]
[1739503370183,0.2488,2695.2,2695.1,0.18459221]
[1739503371962,0.2488,2695.2,2695.1,3.89502221]